Cogmind - Beta 17.1 @@@ ROGUE MODE // 2026.09.13 @ 23:20:30 Player: zed Result: Destroyed by G-47 Trooper with Particle Gun Performance ------------- Evolutions (0) 0 Regions Visited (2) 400 Robots Destroyed (14) 70 Value Destroyed (321) 321 Prototype IDs (0) 0 Alien Tech Used (0) 0 Bonus (0) 0 TOTAL SCORE: 791 Bonus ------- None Cogmind --------- Core Integrity 0/250 Matter 300/300 Energy 250/250 System Corruption 6% Temperature Cool (9) Movement Rolling (95) Ox1 Location -10/Mines Parts ------- > --- POWER (1) -------- Ion Engine (fused) > --- PROPULSION (2) --- Wheel > --- UTILITY (2) ------ Small Storage Unit Signal Interpreter > --- WEAPON (2) ------- Hammer > --- INVENTORY (8) ---- Medium Storage Unit Hacking Suite Light Assault Rifle Grenade Launcher Peak State ------------ > --- POWER ------------ Light Ion Engine > --- PROPULSION ------- Light Treads Light Treads > --- UTILITY ---------- Small Storage Unit Targeting Computer > --- WEAPON ----------- Light Assault Rifle Hammer > --- INVENTORY -------- Ion Engine Light Ion Engine Light Treads High-capacity Matter Pod Hacking Suite Light Assault Rifle Light Cannon Grenade Launcher [Rating: 8] Favorites ----------- Power Ion Engine Engine Ion Engine Propulsion Light Treads Treads Light Treads Wheel Wheel Utility Small Storage Unit Storage Small Storage Unit Processor Targeting Computer Weapon Light Assault Rifle Ballistic Gun Light Assault Rifle Ballistic Cannon Light Cannon Impact Weapon Hammer Build | -11 -10 -10 ------- Run | Yrd Mat Min Slots Evolved . | . . . Power . | . . . Propulsion . | . . . Utility . | . . . Weapon . | . . . Parts Attached 18 | 7 11 . Power 4 | 2 2 . Engine 4 | 2 2 . Core . | . . . Reactor . | . . . Propulsion 4 | 2 2 . Treads 3 | 2 1 . Leg . | . . . Wheel 1 | . 1 . Hover . | . . . Flight . | . . . Utility 5 | 1 4 . Device . | . . . Storage 3 | 1 2 . Processor 2 | . 2 . Hackware . | . . . Protection . | . . . Artifact . | . . . Weapon 5 | 2 3 . Energy Gun . | . . . Energy Cannon . | . . . Ballistic Gun 2 | 2 . . Ballistic Cannon 1 | . 1 . Launcher . | . . . Special Weapon . | . . . Impact Weapon 2 | . 2 . Slashing Weapon . | . . . Piercing Weapon . | . . . Special Melee Weapon . | . . . Unidentified Prototypes . | . . . Parts Lost 6 | . 6 . Power 2 | . 2 . Propulsion 3 | . 3 . Utility . | . . . Weapon 1 | . 1 . Highest Loss Streak 3 | . 3 . To Critical Strikes . | . . . Average Backups 5 | 1 5 4 Power 1 | . 1 . Propulsion . | . . . Utility 1 | . 1 2 Weapon 2 | . 2 2 Tool/Special . | . . . Unused Backups 5 | . 2 3 Power . | . . . Propulsion . | . . . Utility 3 | . 2 1 Weapon 2 | . . 2 Tool/Special . | . . . Average Slot Usage (%) 83 | . 84 71 Engine 13 | . 13 14 Treads 16 | . 18 . Wheel 1 | . . 14 Storage 14 | . 14 14 Processor 12 | . 12 14 Ballistic Gun 10 | . 11 . Ballistic Cannon 3 | . 3 . Impact Weapon 8 | . 8 14 Peak Build Rating 8 | 6 8 5 Average Rating 6 | 4 6 5 On Entrance 3 | . 6 5 Avg Prop Armor Cover (%) . | . . . Naked Turns . | . . . Heaviest Build 48 | 12 48 12 Greatest Support 40 | 40 40 10 Greatest Overweight (x) 4 | . 4 1 Average Overweight (x) . | . . 1 Largest Inventory Capacity 20 | 8 20 8 Average Capacity 9 | 6 10 8 Most Carried 9 | 3 9 4 Average Carried 5 | 1 5 4 Final Capacity 8 | 8 8 8 Final Carried 4 | 2 4 4 Class Distribution -------------------- 100% | Mutant Dominant Class ---------------- Mutant | -10/Materials Mutant | -10/Mines Resources | -11 -10 -10 ----------- Run | Yrd Mat Min Matter Collected 671 | 188 451 32 Remotely . | . . . Salvage Created 340 | . 296 44 Parts 19 | . 17 2 Haulers Intercepted . | . . . Recyclers Shooed . | . . . Parts Field Recycled . | . . . Retrieved Matter . | . . . Parts Self-Destructed . | . . . Prevented . | . . . Parts Restored . | . . . Kills | -11 -10 -10 ------- Run | Yrd Mat Min Combat Hostiles Destroyed 10 | . 9 1 Melee 2 | . 1 1 Guns 4 | . 4 . Classes Destroyed 4 | . 4 . Operator 2 | . 2 . Watcher 2 | . 2 . Swarmer 4 | . 4 . Grunt 6 | . 5 1 Best Kill Streak 2 | . 2 1 Combat Bots Only 2 | . 2 1 Max Kills in Single Turn 1 | . 1 1 Gunslinging . | . . . Exploded . | . . . Melee 1 | . 1 1 Uniques/NPCs Destroyed . | . . . Combat | -11 -10 -10 -------- Run | Yrd Mat Min Hostile Shots Fired 116 | . 107 9 Missed 32 | . 28 4 Hits 84 | . 79 5 Projectile 84 | . 79 5 AOE 1 | . 1 . Critical Strikes 2 | . 2 . Damage Taken 960 | . 896 64 Core 253 | . 207 46 Absorbed by Shields . | . . . Core Remaining (%) 100 | 100 . . Volleys Fired 42 | . 42 . Largest 2 | . 2 . Hottest 40 | . 40 . Shots Fired 75 | . 75 . Gun 66 | . 66 . Cannon 9 | . 9 . Launcher . | . . . Special . | . . . Kinetic 75 | . 75 . Thermal . | . . . Explosive . | . . . Electromagnetic . | . . . Robot Hit Streak 9 | . 9 . Robot Miss Streak 2 | . 2 . Penetration Max . | . . . Secondary Targets . | . . . Shots Hit Robots 68 | . 66 2 Core Hits 16 | . 15 1 Critical Kills . | . . . Critical Parts Destroyed 4 | . 4 . Critical Strikes 4 | . 4 . Smash 4 | . 4 . Melee Attacks 30 | . 24 6 Impact 30 | . 24 6 Slashing . | . . . Piercing . | . . . Sneak Attacks 2 | . 2 . Combat Hostiles . | . . . Follow-up Attacks . | . . . Damage Inflicted 866 | . 818 48 Guns 430 | . 430 . Cannons 90 | . 90 . Explosions . | . . . Melee 346 | . 298 48 Ramming . | . . . Kinetic 520 | . 520 . Thermal . | . . . Explosive . | . . . Electromagnetic . | . . . Impact 346 | . 298 48 Slashing . | . . . Piercing . | . . . Highest Corruption 6 | . 6 6 Average Corruption 4 | . 4 6 Corruption Purged . | . . . Corruption Blocked . | . . . Effects 36 | . 34 2 Message Errors 6 | . 6 . Matter Fused 7 | . 7 . Heat Flow Errors 4 | . 4 . Energy Discharges 3 | . 3 . Parts Rejected 1 | . 1 . Parts Fused 3 | . 3 . Data Loss (minor) 8 | . 6 2 Data Loss (major) 1 | . 1 . Misfires 1 | . 1 . Alerts 1 | . 1 . Weapon Failures 1 | . 1 . Overload Shots . | . . . Overflow Damage 92 | . 92 . Projectiles . | . . . Explosions . | . . . Melee 92 | . 92 . Knockbacks 2 | . 2 . Impact . | . . . Kinetic 2 | . 2 . Secondary . | . . . Self-Inflicted Damage . | . . . Shots . | . . . Rammed . | . . . Targets Rammed . | . . . Kicked . | . . . Crushed . | . . . Highest Temperature 272 | . 272 . Average Temperature 62 | . 62 . Received Heat Transfer 309 | . 273 36 Siege Activations . | . . . Martial Activations . | . . . Shielding Activations . | . . . Robots Disrupted . | . . . Combat Hostiles . | . . . Robots Corrupted 5 | . 5 . Combat Hostiles 4 | . 4 . Parts Fried 3 | . 3 . Impact Corruptions 8 | . 8 . Robots Melted . | . . . Combat Hostiles . | . . . Parts Melted . | . . . Heat Transferred . | . . . Parts Sabotaged . | . . . Parts Stolen . | . . . Parts Stripped . | . . . Power Chain Reactions . | . . . Alert | -11 -10 -10 ------- Run | Yrd Mat Min Maximum Alert Level . | . . . Low Security (%) 100 | 100 100 100 Level 1 . | . . . Level 2 . | . . . Level 3 . | . . . Level 4 . | . . . Level 5 . | . . . High Security . | . . . Max Security . | . . . Peak Influence 88 | . 88 20 Initial . | . . . Average 11 | . 12 . Influence Increases 332 | . 312 20 Destroy 0b10 Robot/C 200 | . 180 20 Destroy 0b10 Robot/NC 20 | . 20 . Destroy Leader 64 | . 64 . Destroy Structure 3 | . 3 . Partial Spotted 15 | . 15 . Lose Combat Pursuer 30 | . 30 . Influence Decreases 322 | . 312 10 Time Decay 282 | . 272 10 Lost Part 40 | . 40 . Squads Dispatched 4 | . 3 1 Investigation . | . . . Extermination . | . . . Reinforcement 3 | . 3 . Assault 1 | . . 1 Garrison . | . . . Intercept . | . . . Searches Triggered . | . . . Construction Impeded . | . . . Haulers Reinforced . | . . . Active Scanning Responses . | . . . Cargo Convoy Interrupts . | . . . Stealth | -11 -10 -10 --------- Run | Yrd Mat Min Distress Signals 1 | . 1 . Communications Jammed . | . . . Distress Signals . | . . . Times Spotted 27 | . 23 4 Peak Tracking Total 4 | . 4 4 Tactical Retreats 1 | . 1 . Traps | -11 -10 -10 ------- Run | Yrd Mat Min Traps Triggered 4 | . 4 . Indirectly . | . . . Trap Hack Attempts . | . . . Triggered . | . . . Disarmed . | . . . Reprogrammed . | . . . Reused . | . . . Traps Extracted . | . . . Installed . | . . . Triggered . | . . . Machines | -11 -10 -10 ---------- Run | Yrd Mat Min Machines Disabled . | . . . Max in Single Turn . | . . . Machines Repaired . | . . . Machines Dismantled . | . . . Machines Sabotaged . | . . . Overloaded Fab Kills . | . . . Hacking | -11 -10 -10 --------- Run | Yrd Mat Min Machines Accessed 1 | . 1 . Terminals 1 | . 1 . Fabricators . | . . . Repair Stations . | . . . Recycling Units . | . . . Scanalyzers . | . . . Garrison Access . | . . . Total Hacks 1 | . 1 . Successful . | . . . Failed 1 | . 1 . Catastrophic 1 | . 1 . Database Lockouts . | . . . Manual 1 | . 1 . Terminals 1 | . 1 . Fabricators . | . . . Repair Stations . | . . . Recycling Units . | . . . Scanalyzers . | . . . Garrison Access . | . . . Terminal Hacks . | . . . Fabricator Hacks . | . . . Repair Station Hacks . | . . . Recycling Unit Hacks . | . . . Scanalyzer . | . . . Garrison Access Hacks . | . . . Unauthorized Hacks . | . . . Terminals . | . . . Fabricators . | . . . Repair Stations . | . . . Recycling Units . | . . . Scanalyzers . | . . . Garrison Access . | . . . Data Cores Recovered . | . . . Used . | . . . Hacking Detections 1 | . 1 . Full Trace Events . | . . . Feedback Events . | . . . Feedback Blocked . | . . . Robot Schematics Acquired . | . . . Robots Built . | . . . Authchips . | . . . Time . | . . . Total Robot Build Rating . | . . . Part Schematics Acquired . | . . . Parts Built . | . . . Authchips . | . . . Time . | . . . Total Part Build Rating . | . . . Part Studies Acquired . | . . . Parts Repaired . | . . . Time . | . . . Parts Recycled . | . . . Recycled Matter . | . . . Retrieved Matter . | . . . Retrieved Components . | . . . Parts Scanalyzed . | . . . Part Schematics Acquired . | . . . Parts Damaged . | . . . Bothacking | -11 -10 -10 ------------ Run | Yrd Mat Min Used RIF Installer . | . . . Robots Hacked . | . . . Non-combat . | . . . Combat . | . . . Robot Hacks Applied . | . . . Relay Couplers Released . | . . . Fabnet Peak Effective % . | . . . Robots Rewired . | . . . Allies Hacked . | . . . Hacks Repelled . | . . . Allies | -11 -10 -10 -------- Run | Yrd Mat Min Total Allies 1 | . . 1 Largest Group 1 | . . 1 Highest-Rated Group 31 | . . 31 Highest-Rated Ally 31 | . . 31 Total Orders . | . . . Ally Attacks 7 | . . 7 Total Damage 105 | . . 105 Kills . | . . . Allies Corrupted . | . . . Allies Melted . | . . . Intel | -11 -10 -10 ------- Run | Yrd Mat Min Active Infowar (turns) . | . . . Robot Analysis Total . | . . . Derelict Logs Recovered . | . . . Drone Launches . | . . . Drone Recoveries . | . . . Exploration | -11 -10 -10 ------------- Run | Yrd Mat Min Turns Passed 1615 | 84 1430 101 Spaces Moved 806 | 48 700 58 Core 172 | 4 168 . Treads 529 | 44 485 . Legs . | . . . Wheels 105 | . 47 58 Hover . | . . . Flight . | . . . Fastest Speed 50 | 50 95 95 Average Speed 166 | 150 174 95 Slowest Speed 250 | 160 250 95 Overloaded Moves . | . . . Propulsion Burnouts . | . . . Robots Hopped . | . . . Potential Cave-ins . | . . . Cave-ins Triggered . | . . . Exploration Rate (%) 37 | 4 96 11 Regions Visited 2 Branch Regions 1 Pre-discovered Areas . | . . . Known Exits Taken 1 | . 1 . Unknown Exits Taken 1 | 1 . . Scrap Searched . | . . . Spaces Dug 3 | . 3 . Terrain Destroyed 3 | . 3 . Melee 3 | . 3 . Projectile . | . . . AOE . | . . . Terrain Rammed . | . . . Walls Destroyed . | . . . Machines Disabled . | . . . Actions | -11 -10 -10 --------- Run | Yrd Mat Min Total 954 | 57 804 93 Wait 39 | . 10 29 Move 804 | 47 699 58 Hop . | . . . Pick Up 14 | 3 11 . Fast Attach 7 | 5 2 . Attach 5 | 1 4 . Detach . | . . . Swap 9 | 1 8 . Drop 4 | . 4 . Fire 42 | . 42 . Melee 30 | . 24 6 Ram . | . . . Kick . | . . . Crush . | . . . Escape Stasis . | . . . Rewire . | . . . Trap . | . . . Miscellaneous . | . . . Route ------- -11/Scrapyard -10/Materials (discovered 4 exits: *Mat x3 / *Min) -10/Mines History --------- Turn | Location | Event 16 | -11/Scrapyard | Discovered new exit (range 15) 85 | -11/Scrapyard | Entered Materials 314 | -10/Materials | Build established: Mutant 568 | -10/Materials | Discovered new exit (range 16) 887 | -10/Materials | Discovered new exit (range 14) 1099 | -10/Materials | Core integrity fell below 50% 1106 | -10/Materials | Core integrity fell below 20% 1124 | -10/Materials | Discovered new exit (range 5) 1136 | -10/Materials | Lost 3 parts (1p1n1w) 1244 | -10/Materials | Identified exit to Materials 1459 | -10/Materials | Discovered new exit (range 11) 1477 | -10/Materials | Identified exit to Mines 1515 | -10/Materials | Entered Mines 1516 | -10/Mines | Met a Derelict testing a Signal Generator 1517 | -10/Mines | Met a Derelict bent on vengeance 1616 | -10/Mines | Destroyed by G-47 Trooper with Particle Gun Last Messages --------------- procedurally generated transmissions. ALERT: Intercepting significant anomalous signal. Redirecting assault force. Signal Generator's internal power supply exhausted. System corrupted: Component data lost. T-07 Excavator is excavating. System corrupted: Component data lost. T-07 Excavator is excavating. OX-KC7(g) destroyed. Acquired 32 matter. U-05 Engineer lays Concrete. T-07 Excavator is excavating. U-05 Engineer builds a Wall. U-05 Engineer lays Concrete. T-07 Excavator is excavating. U-05 Engineer lays Concrete. T-07 Excavator is excavating. G-34 Mercenary destroyed. T-07 Excavator is excavating. Map ----- +----------------------------------------------------+ | | | | | | | | | | | | | | | ?????????????????????????????????????????????????? | | ?????????????????????????????????????????????????? | | ?????????????????????????????????????????????????? | | ?????????????????????????????????????????????????? | | ?????????????????????????????????????????????????? | | ?????????????????????????????????????????????????? | | ?????????????????????????????????????????????????? | | ??????#####??????????????????????????????????????? | | ?????## #??????????????????????????????????????? | | ?????# ???????????????????????????????????????? | | ?????## #???????????????????????????????????????? | | ??????# #?????###???????????????????????????????? | | ??????# #?????# ???????????????????????????????? | | ??????# #?????# #???????????????????????????????? | | ??????# ##????# #??????????###??????????????????? | | ?????## ###??# #???????### ??????????????????? | | ?????# #### #???????# t#??????????????????? | | ?????# #??######[ #??????????????????? | | ?????## ### #??#mgg!@=* #??????????????????? | | ??????#### ##?# #??#g##### ###??????????????????? | | ?????????####??# #??# #???###????????????????????? | | ???????????????# #??# #??????????????????????????? | | ??????????????## #### #??????????????????????????? | | ??????????????# #??????????????????????????? | | ??????????????# ######??????????????????????????? | | ??????????????# #???????????????????????????????? | | ??????????????# #???????????????????????????????? | | ??????????????# #???????????????????????????????? | | ?????????????# ??????????????????????????????? | | ???????????? ????????????????????????????? | | ?????????? ??????????????????????????? | | ?????????#### ????????????????????????? | | ????????????## ??????????????????????? | | ?????????????#### #####?????????????????????? | | ?????????????????# #?????????????????????????? | | ?????????????????? #?????????????????????????? | | ?????????????????? ##?????????????????????????? | | ?????????????????? #??????????????????????????? | | ?????????????????? #??????????????????????????? | | ?????????????????? ??????????????????????????? | | ??????????????????? ??????????????????????????? | | ???????????????????# ????????????????????????????? | | ?????????????????????????????????????????????????? | +----------------------------------------------------+ Best States ------------- Heat Dissipation 25 Energy Generation 10 Energy Capacity 250 Matter Stores 300 Matter Capacity 300 Sight Range 16 Terrain Scan Density 10 Evasion (%) 41 Targeting Accuracy 5 Recoil Reduction 2 Item Schematics ----------------- None Robot Schematics ------------------ None Fabricated ------------ Nothing Repaired ---------- Nothing Studied --------- None Alien Tech Used ----------------- None Achievements -------------- None Challenges ------------ None Game ------ Seed CryofiberScrapSource Manual? 0 Play Time 00:16:57 Cumulative 26.7 hours Start 2026.09.13 @ 23:04:52 End 2026.09.13 @ 23:20:30 Sessions 1 Manual Loads 0 Difficulty Rogue Special Mode None Game No. 12 Rogue 12 Adventurer 0 Explorer 0 Win Type - Total 0 Types 0/0/0/0/0/0/0/0/0/0 Lore% 19 Gallery% 20 Achievement% 19 Wizard Run 0 Options --------- Layout 1 ASCII 0 Keyboard 0 Movement Numpad Keybinds 0 Fullscreen 2 Font 32/SmallcapsGlow Map View 50x35 Zoom Use 0% Tactical HUD 0 Map Filters NONE Filters NONE Steam 1 RUN: 11618019-830d-4e57-b505-570732c7229f